[Event "Dvaro taure"]
[Site "Taujenai, Lithuania"]
[Date "2021.11.28"]
[Round "8.1"]
[White "Laurusas, Tomas"]
[Black "Greicius, Pijus"]
[Result "1-0"]
[WhiteElo "2550"]
[BlackElo "1949"]
[PlyCount "43"]
[EventDate "2021.??.??"]
[TimeControl "10+5"]
[WhiteClock "0:08:23"]
[BlackClock "0:03:43"]

1. c4 {[%emt 0:00:00]} c5 {[%emt 0:00:03]} 2. Nf3 {[%emt 0:00:01]} Nc6 {[%emt
0:00:04]} 3. d4 {[%emt 0:00:00]} cxd4 {[%emt 0:00:03]} 4. Nxd4 {[%emt 0:00:02]}
g6 {[%emt 0:01:09]} 5. e4 {[%emt 0:00:02]} Bg7 {[%emt 0:00:03]} 6. Be3 {[%emt
0:00:01]} d6 {[%emt 0:00:10]} 7. Nc3 {[%emt 0:00:02]} Nf6 {[%emt 0:00:08]} 8.
Be2 {[%emt 0:00:02]} Bd7 {[%emt 0:00:13]} 9. Nb3 {[%emt 0:00:04]} b6 {[%emt 0:
00:47]} 10. O-O {[%emt 0:00:04]} O-O {[%emt 0:00:03]} 11. h3 {[%emt 0:00:12]}
Rc8 {[%emt 0:00:04]} 12. Nd2 {[%emt 0:00:04]} Ne8 {[%emt 0:01:36]} 13. Rc1 {
[%emt 0:00:13]} Nc7 {[%emt 0:00:16]} 14. f4 {[%emt 0:00:05]} e6 {[%emt 0:00:07]
} 15. Nf3 {[%emt 0:00:11]} Qe7 {[%emt 0:00:09]} 16. Bf2 {[%emt 0:01:02]} Rfe8 {
[%emt 0:01:43]} 17. Bh4 {[%emt 0:00:04]} Qf8 {[%emt 0:00:02]} 18. Qd2 {[%emt 0:
00:04]} f5 {[%emt 0:00:19]} 19. e5 {[%emt 0:00:44]} Nd8 {[%emt 0:01:08]} 20.
exd6 {[%emt 0:00:21]} Na6 {[%emt 0:00:03]} 21. Be7 {[%emt 0:00:05]} Qf7 {[%emt
0:00:04]} 22. Ng5 {[%emt 0:00:02]} 1-0

[Event "Dvaro taure"]
[Site "Taujenai, Lithuania"]
[Date "2021.11.28"]
[Round "8.2"]
[White "Salna, Aleksandras"]
[Black "Kalvaitis, Sigitas"]
[Result "0-1"]
[WhiteElo "2088"]
[BlackElo "2171"]
[PlyCount "114"]
[EventDate "2021.??.??"]
[TimeControl "10+5"]
[WhiteClock "0:00:57"]
[BlackClock "0:01:08"]

1. d4 {[%emt 0:00:02]} Nf6 {[%emt 0:00:02]} 2. c4 {[%emt 0:00:01]} e6 {[%emt 0:
00:02]} 3. Nc3 {[%emt 0:00:03]} d5 {[%emt 0:00:00]} 4. Nf3 {[%emt 0:00:05]} Be7
{[%emt 0:00:02]} 5. Bf4 {[%emt 0:00:04]} O-O {[%emt 0:00:06]} 6. e3 {[%emt 0:
00:01]} b6 {[%emt 0:00:14]} 7. Be2 {[%emt 0:00:39]} Bb7 {[%emt 0:00:24]} 8. O-O
{[%emt 0:00:24]} dxc4 {[%emt 0:00:47]} 9. Bxc4 {[%emt 0:00:18]} c5 {[%emt 0:00:
25]} 10. dxc5 {[%emt 0:00:29]} Bxc5 {[%emt 0:00:11]} 11. a3 {[%emt 0:00:12]}
Nbd7 {[%emt 0:01:33]} 12. Qe2 {[%emt 0:00:58]} a6 {[%emt 0:00:10]} 13. Rfd1 {
[%emt 0:00:45]} b5 {[%emt 0:00:09]} 14. Ba2 {[%emt 0:00:09]} Qb6 {[%emt 0:00:
11]} 15. a4 {[%emt 0:00:21]} b4 {[%emt 0:00:47]} 16. a5 {[%emt 0:00:14]} Qa7 {
[%emt 0:00:01]} 17. Na4 {[%emt 0:00:10]} Be7 {[%emt 0:00:09]} 18. Rac1 {[%emt
0:00:31]} Rac8 {[%emt 0:00:29]} 19. h3 {[%emt 0:00:34]} Bc6 {[%emt 0:00:23]}
20. Bb3 {[%emt 0:00:21]} Bb5 {[%emt 0:00:15]} 21. Qe1 {[%emt 0:00:13]} Qb7 {
[%emt 0:00:22]} 22. Nd4 {[%emt 0:00:29]} Bxa4 {[%emt 0:00:30]} 23. Bxa4 {[%emt
0:00:02]} Nc5 {[%emt 0:00:00]} 24. Bc2 {[%emt 0:00:12]} Rfd8 {[%emt 0:00:23]}
25. Nb3 {[%emt 0:00:31]} Na4 {[%emt 0:00:12]} 26. Rxd8+ {[%emt 0:00:24]} Rxd8 {
[%emt 0:00:06]} 27. Rb1 {[%emt 0:00:32]} Qc6 {[%emt 0:00:25]} 28. Nd4 {[%emt 0:
00:12]} Qe8 {[%emt 0:00:27]} 29. Bd3 {[%emt 0:00:18]} Nc5 {[%emt 0:00:13]} 30.
Be2 {[%emt 0:00:01]} Nd5 {[%emt 0:00:03]} 31. Bg3 {[%emt 0:00:09]} Bf6 {[%emt
0:00:18]} 32. Rc1 {[%emt 0:00:09]} Bxd4 {[%emt 0:00:39]} 33. exd4 {[%emt 0:00:
01]} Nb3 {[%emt 0:00:02]} 34. Rd1 {[%emt 0:00:09]} Qc6 {[%emt 0:00:13]} 35. Qf1
{[%emt 0:00:05]} Nxa5 {[%emt 0:00:06]} 36. Bxa6 {[%emt 0:00:10]} Qc2 {[%emt 0:
00:07]} 37. Rb1 {[%emt 0:00:45]} b3 {[%emt 0:00:15]} 38. Bd3 {[%emt 0:00:04]}
Qd2 {[%emt 0:00:06]} 39. Qd1 {[%emt 0:00:34]} Qb4 {[%emt 0:00:23]} 40. Rc1 {
[%emt 0:00:06]} Qb6 {[%emt 0:00:49]} 41. Rc5 {[%emt 0:00:25]} Nc6 {[%emt 0:00:
06]} 42. Be4 {[%emt 0:00:14]} Nde7 {[%emt 0:00:18]} 43. Qg4 {[%emt 0:00:41]} f5
{[%emt 0:00:11]} 44. Qg5 {[%emt 0:00:12]} fxe4 {[%emt 0:00:07]} 45. Be5 {[%emt
0:00:04]} Nxe5 {[%emt 0:00:13]} 46. Rxe5 {[%emt 0:00:01]} Ng6 {[%emt 0:00:07]}
47. Rxe4 {[%emt 0:00:06]} Rxd4 {[%emt 0:00:03]} 48. Re1 {[%emt 0:00:04]} Qd8 {
[%emt 0:00:05]} 49. Qe3 {[%emt 0:00:03]} Rd1 {[%emt 0:00:19]} 50. Qxe6+ {[%emt
0:00:01]} Kh8 {[%emt 0:00:01]} 51. g3 {[%emt 0:00:09]} Rxe1+ {[%emt 0:00:01]}
52. Qxe1 {[%emt 0:00:02]} h6 {[%emt 0:00:03]} 53. Qe6 {[%emt 0:00:01]} Qd1+ {
[%emt 0:00:06]} 54. Kg2 {[%emt 0:00:03]} Kh7 {[%emt 0:00:03]} 55. h4 {[%emt 0:
00:01]} h5 {[%emt 0:00:07]} 56. Qf5 {[%emt 0:00:08]} Qg4 {[%emt 0:00:01]} 57.
Qd5 {[%emt 0:00:01]} Nf4+ {[%emt 0:00:02]} 0-1

[Event "Dvaro taure"]
[Site "Taujenai, Lithuania"]
[Date "2021.11.28"]
[Round "8.3"]
[White "Baliasnyj, Timur"]
[Black "Bazilius, Augustinas"]
[Result "1/2-1/2"]
[WhiteElo "2001"]
[BlackElo "1911"]
[PlyCount "41"]
[EventDate "2021.??.??"]
[TimeControl "10+5"]
[WhiteClock "0:00:43"]
[BlackClock "0:01:58"]

1. Nf3 {[%emt 1:12:00]} Nf6 {[%emt 0:00:02]} 2. c4 {[%emt 0:00:03]} g6 {[%emt
0:00:01]} 3. g3 {[%emt 0:00:01]} Bg7 {[%emt 0:00:00]} 4. Bg2 {[%emt 0:00:01]}
O-O {[%emt 0:00:02]} 5. O-O {[%emt 0:00:03]} c6 {[%emt 0:00:08]} 6. d4 {[%emt
0:01:05]} d5 {[%emt 0:00:02]} 7. Ne5 {[%emt 0:00:38]} Ng4 {[%emt 0:00:24]} 8.
Nxg4 {[%emt 0:00:21]} Bxg4 {[%emt 0:00:02]} 9. cxd5 {[%emt 0:00:22]} cxd5 {
[%emt 0:00:02]} 10. Nc3 {[%emt 0:00:02]} Nc6 {[%emt 0:01:33]} 11. Bxd5 {[%emt
0:02:32]} Bh3 {[%emt 0:02:18]} 12. Re1 {[%emt 0:00:47]} Bxd4 {[%emt 0:00:33]}
13. Bh6 {[%emt 0:00:51]} Bg7 {[%emt 0:00:21]} 14. Bxg7 {[%emt 0:00:06]} Kxg7 {
[%emt 0:00:02]} 15. Qb3 {[%emt 0:01:17]} Qb6 {[%emt 0:00:55]} 16. Qxb6 {[%emt
0:00:35]} axb6 {[%emt 0:00:01]} 17. Rad1 {[%emt 0:00:17]} Rfd8 {[%emt 0:01:12]}
18. f3 {[%emt 0:00:18]} Bd7 {[%emt 0:00:39]} 19. Rd2 {[%emt 0:00:44]} Be8 {
[%emt 0:01:27]} 20. Red1 {[%emt 0:00:08]} e6 {[%emt 0:00:08]} 21. Bb3 {[%emt 0:
00:52]} 1/2-1/2

[Event "Dvaro taure"]
[Site "Taujenai, Lithuania"]
[Date "2021.11.28"]
[Round "8.4"]
[White "Viskelis, Darius"]
[Black "Povilaitis, Tomas"]
[Result "0-1"]
[WhiteElo "1981"]
[BlackElo "1986"]
[PlyCount "74"]
[EventDate "2021.??.??"]
[TimeControl "10+5"]
[WhiteClock "0:00:14"]
[BlackClock "0:00:36"]

1. e4 {[%emt 0:00:01]} c5 {[%emt 0:00:02]} 2. Nf3 {[%emt 0:00:05]} Nc6 {[%emt
0:00:02]} 3. Bb5 {[%emt 0:00:02]} d6 {[%emt 0:00:02]} 4. O-O {[%emt 0:00:09]}
Bd7 {[%emt 0:00:01]} 5. c3 {[%emt 0:00:12]} a6 {[%emt 0:00:10]} 6. Ba4 {[%emt
0:00:08]} b5 {[%emt 0:00:08]} 7. Bc2 {[%emt 0:00:04]} c4 {[%emt 0:00:18]} 8. a4
{[%emt 0:00:47]} b4 {[%emt 0:00:58]} 9. b3 {[%emt 0:00:21]} cxb3 {[%emt 0:00:
21]} 10. Bxb3 {[%emt 0:00:02]} bxc3 {[%emt 0:00:08]} 11. Nxc3 {[%emt 0:00:12]}
g6 {[%emt 0:00:09]} 12. d4 {[%emt 0:01:18]} Bg7 {[%emt 0:00:02]} 13. Bg5 {
[%emt 0:00:18]} h6 {[%emt 0:00:14]} 14. Be3 {[%emt 0:00:29]} Bg4 {[%emt 0:00:
14]} 15. h3 {[%emt 0:00:15]} Bxf3 {[%emt 0:00:32]} 16. Qxf3 {[%emt 0:00:02]} e6
{[%emt 0:00:01]} 17. Rad1 {[%emt 0:03:44]} Nge7 {[%emt 0:00:02]} 18. d5 {[%emt
0:00:37]} Na5 {[%emt 0:03:07]} 19. dxe6 {[%emt 0:00:15]} fxe6 {[%emt 0:00:02]}
20. Bxe6 {[%emt 0:00:23]} Rf8 {[%emt 0:00:00]} 21. Qg3 {[%emt 0:00:14]} Be5 {
[%emt 0:00:20]} 22. f4 {[%emt 0:01:12]} Bxc3 {[%emt 0:00:01]} 23. e5 {[%emt 0:
00:18]} Nb7 {[%emt 0:00:40]} 24. Rd3 {[%emt 0:00:13]} Bb4 {[%emt 0:00:28]} 25.
f5 {[%emt 0:00:07]} gxf5 {[%emt 0:01:33]} 26. Bxh6 {[%emt 0:00:11]} d5 {[%emt
0:01:08]} 27. Rxd5 {[%emt 0:00:06]} Qb6+ {[%emt 0:00:10]} 28. Kh1 {[%emt 0:00:
12]} Qxe6 {[%emt 0:00:01]} 29. Bxf8 {[%emt 0:00:16]} Nxd5 {[%emt 0:00:20]} 30.
Qg7 {[%emt 0:00:05]} Bxf8 {[%emt 0:00:07]} 31. Qxb7 {[%emt 0:00:01]} Rd8 {
[%emt 0:00:07]} 32. Qb3 {[%emt 0:00:11]} Qxe5 {[%emt 0:00:23]} 33. Qc4 {[%emt
0:00:06]} Bd6 {[%emt 0:00:06]} 34. Qc6+ {[%emt 0:00:05]} Kf8 {[%emt 0:00:08]}
35. g3 {[%emt 0:00:02]} Ne3 {[%emt 0:00:06]} 36. Rf3 {[%emt 0:00:05]} Qa1+ {
[%emt 0:00:22]} 37. Kh2 {[%emt 0:00:03]} Qd4 {[%emt 0:00:11]} 0-1

[Event "Dvaro taure"]
[Site "Taujenai, Lithuania"]
[Date "2021.11.28"]
[Round "8.5"]
[White "Sumskis, Rimvydas"]
[Black "Aleknavicius, Andrius"]
[Result "1/2-1/2"]
[WhiteElo "1895"]
[BlackElo "1942"]
[PlyCount "48"]
[EventDate "2021.??.??"]
[TimeControl "10+5"]
[WhiteClock "0:03:28"]
[BlackClock "0:09:28"]

1. e4 {[%emt 0:00:03]} d6 {[%emt 0:00:06]} 2. d4 {[%emt 0:00:03]} Nf6 {[%emt 0:
00:02]} 3. Nc3 {[%emt 0:00:01]} e5 {[%emt 0:00:02]} 4. dxe5 {[%emt 0:00:09]}
dxe5 {[%emt 0:00:02]} 5. Qxd8+ {[%emt 0:00:02]} Kxd8 {[%emt 0:00:01]} 6. Bc4 {
[%emt 0:00:05]} Be6 {[%emt 0:00:05]} 7. Bxe6 {[%emt 0:00:13]} fxe6 {[%emt 0:00:
02]} 8. Be3 {[%emt 0:00:14]} Bd6 {[%emt 0:00:24]} 9. f3 {[%emt 0:00:06]} Ke7 {
[%emt 0:00:11]} 10. Nge2 {[%emt 0:00:32]} Nbd7 {[%emt 0:00:23]} 11. O-O-O {
[%emt 0:00:22]} a6 {[%emt 0:00:15]} 12. Kb1 {[%emt 0:01:07]} b5 {[%emt 0:02:26]
} 13. a3 {[%emt 0:00:02]} h5 {[%emt 0:00:45]} 14. Nc1 {[%emt 0:00:07]} Rad8 {
[%emt 0:00:42]} 15. Nb3 {[%emt 0:00:42]} Nb6 {[%emt 0:01:12]} 16. Na5 {[%emt 0:
01:13]} Rd7 {[%emt 0:00:08]} 17. Nc6+ {[%emt 0:01:59]} Kf7 {[%emt 0:00:06]} 18.
Rd3 {[%emt 0:00:24]} Nc4 {[%emt 0:01:07]} 19. Rhd1 {[%emt 0:00:10]} Nxe3 {
[%emt 0:00:35]} 20. Rxe3 {[%emt 0:00:32]} Ra8 {[%emt 0:01:54]} 21. Red3 {[%emt
0:00:14]} Ke8 {[%emt 0:00:02]} 22. h3 {[%emt 0:00:24]} g5 {[%emt 0:00:07]} 23.
Kc1 {[%emt 0:01:15]} Rg7 {[%emt 0:00:07]} 24. g4 {[%emt 0:00:28]} h4 {[%emt 0:
00:34]} 1/2-1/2

[Event "Dvaro taure"]
[Site "Taujenai, Lithuania"]
[Date "2021.11.28"]
[Round "8.6"]
[White "Zaura, Vidmantas"]
[Black "Povilaitis, Matas"]
[Result "0-1"]
[WhiteElo "1971"]
[BlackElo "1910"]
[PlyCount "90"]
[EventDate "2021.??.??"]
[TimeControl "10+5"]
[WhiteClock "0:00:31"]
[BlackClock "0:01:20"]

1. Nf3 {[%emt 0:00:01]} d5 {[%emt 0:00:02]} 2. c4 {[%emt 0:00:02]} c6 {[%emt 0:
00:03]} 3. b3 {[%emt 0:00:00]} Nf6 {[%emt 0:00:03]} 4. Bb2 {[%emt 0:00:04]} Bf5
{[%emt 0:00:06]} 5. g3 {[%emt 0:00:02]} e6 {[%emt 0:00:02]} 6. Bg2 {[%emt 0:00:
01]} Nbd7 {[%emt 0:00:03]} 7. O-O {[%emt 0:00:10]} Bd6 {[%emt 0:00:06]} 8. d3 {
[%emt 0:00:08]} Qc7 {[%emt 0:00:43]} 9. Nc3 {[%emt 0:00:06]} Ne5 {[%emt 0:00:
25]} 10. Nxe5 {[%emt 0:00:34]} Bxe5 {[%emt 0:00:02]} 11. Qc2 {[%emt 0:00:00]}
dxc4 {[%emt 0:00:37]} 12. bxc4 {[%emt 0:00:07]} h5 {[%emt 0:00:15]} 13. Nd1 {
[%emt 0:02:35]} h4 {[%emt 0:01:51]} 14. Bxe5 {[%emt 0:00:03]} Qxe5 {[%emt 0:00:
02]} 15. Qb2 {[%emt 0:00:03]} Qxb2 {[%emt 0:01:05]} 16. Nxb2 {[%emt 0:00:02]}
hxg3 {[%emt 0:00:05]} 17. hxg3 {[%emt 0:00:34]} Bh3 {[%emt 0:00:01]} 18. Bxh3 {
[%emt 0:00:11]} Rxh3 {[%emt 0:00:00]} 19. Kg2 {[%emt 0:00:03]} Rh8 {[%emt 0:00:
05]} 20. Na4 {[%emt 0:00:57]} Kd7 {[%emt 0:00:17]} 21. Rab1 {[%emt 0:00:02]} b6
{[%emt 0:00:30]} 22. c5 {[%emt 0:00:53]} Kc7 {[%emt 0:00:21]} 23. Rfc1 {[%emt
0:00:23]} b5 {[%emt 0:00:08]} 24. Nc3 {[%emt 0:00:06]} Rhd8 {[%emt 0:00:27]}
25. Kf3 {[%emt 0:00:34]} a6 {[%emt 0:00:07]} 26. Rh1 {[%emt 0:00:21]} Rd4 {
[%emt 0:01:05]} 27. Rh2 {[%emt 0:01:23]} Rad8 {[%emt 0:00:21]} 28. Rbh1 {[%emt
0:00:03]} Rb4 {[%emt 0:01:26]} 29. Rh8 {[%emt 0:00:14]} Rb2 {[%emt 0:00:03]}
30. Rxd8 {[%emt 0:00:11]} Kxd8 {[%emt 0:00:01]} 31. Rh8+ {[%emt 0:00:02]} Ne8 {
[%emt 0:00:03]} 32. Ne4 {[%emt 0:01:20]} Ke7 {[%emt 0:00:01]} 33. a3 {[%emt 0:
00:10]} Ra2 {[%emt 0:00:09]} 34. Nd6 {[%emt 0:00:41]} Nxd6 {[%emt 0:00:02]} 35.
cxd6+ {[%emt 0:00:02]} Kxd6 {[%emt 0:00:02]} 36. Rd8+ {[%emt 0:00:03]} Ke7 {
[%emt 0:01:11]} 37. Rc8 {[%emt 0:00:04]} Rxa3 {[%emt 0:00:02]} 38. Rxc6 {[%emt
0:00:04]} b4 {[%emt 0:00:07]} 39. Rc7+ {[%emt 0:00:07]} Kf6 {[%emt 0:00:07]}
40. g4 {[%emt 0:00:03]} b3 {[%emt 0:00:05]} 41. Rb7 {[%emt 0:00:02]} a5 {[%emt
0:00:02]} 42. Ke3 {[%emt 0:00:06]} a4 {[%emt 0:00:04]} 43. f4 {[%emt 0:00:03]}
Ra2 {[%emt 0:00:03]} 44. Rb5 {[%emt 0:00:37]} b2 {[%emt 0:00:02]} 45. Kd4 {
[%emt 0:00:10]} a3 {[%emt 0:00:03]} 0-1

[Event "Dvaro taure"]
[Site "Taujenai, Lithuania"]
[Date "2021.11.28"]
[Round "8.7"]
[White "Juknis, Paulius"]
[Black "Tilvikas, Justas"]
[Result "1-0"]
[WhiteElo "2059"]
[BlackElo "1849"]
[PlyCount "91"]
[EventDate "2021.??.??"]
[TimeControl "10+5"]
[WhiteClock "0:00:37"]
[BlackClock "0:00:16"]

1. d4 {[%emt 0:00:03]} Nf6 {[%emt 0:00:06]} 2. Bf4 {[%emt 0:00:01]} d5 {[%emt
0:00:04]} 3. e3 {[%emt 0:00:01]} e6 {[%emt 0:00:02]} 4. Nf3 {[%emt 0:00:04]} c5
{[%emt 0:00:01]} 5. c3 {[%emt 0:00:03]} Bd6 {[%emt 0:00:00]} 6. Nbd2 {[%emt 0:
00:09]} Qc7 {[%emt 0:00:00]} 7. Bxd6 {[%emt 0:00:07]} Qxd6 {[%emt 0:00:01]} 8.
Ne5 {[%emt 0:00:00]} O-O {[%emt 0:00:22]} 9. Bd3 {[%emt 0:00:06]} Nbd7 {[%emt
0:02:06]} 10. f4 {[%emt 0:00:04]} Rd8 {[%emt 0:00:17]} 11. Qf3 {[%emt 0:00:41]}
b6 {[%emt 0:00:40]} 12. g4 {[%emt 0:00:41]} Nf8 {[%emt 0:00:04]} 13. g5 {[%emt
0:00:25]} N6d7 {[%emt 0:00:02]} 14. h4 {[%emt 0:01:02]} f6 {[%emt 0:01:05]} 15.
gxf6 {[%emt 0:00:52]} Nxf6 {[%emt 0:00:02]} 16. O-O-O {[%emt 0:00:38]} Bd7 {
[%emt 0:00:22]} 17. Rdg1 {[%emt 0:00:14]} Be8 {[%emt 0:01:19]} 18. h5 {[%emt 0:
00:14]} h6 {[%emt 0:01:17]} 19. Rg3 {[%emt 0:02:20]} a5 {[%emt 0:00:13]} 20.
Rhg1 {[%emt 0:00:18]} Ra7 {[%emt 0:00:00]} 21. Qg2 {[%emt 0:01:02]} Nxh5 {
[%emt 0:01:49]} 22. Rh3 {[%emt 0:00:10]} Kh8 {[%emt 0:00:11]} 23. Ng4 {[%emt 0:
00:15]} e5 {[%emt 0:01:15]} 24. fxe5 {[%emt 0:00:43]} Qe6 {[%emt 0:00:02]} 25.
Rgh1 {[%emt 0:00:22]} Nh7 {[%emt 0:00:12]} 26. Rxh5 {[%emt 0:00:07]} Bxh5 {
[%emt 0:00:01]} 27. Rxh5 {[%emt 0:00:02]} Rf8 {[%emt 0:00:05]} 28. Nf3 {[%emt
0:00:27]} c4 {[%emt 0:00:02]} 29. Bc2 {[%emt 0:00:14]} Raf7 {[%emt 0:00:01]}
30. Ngh2 {[%emt 0:00:13]} b5 {[%emt 0:00:09]} 31. Rh3 {[%emt 0:00:15]} b4 {
[%emt 0:00:03]} 32. Qg6 {[%emt 0:00:08]} Qxg6 {[%emt 0:00:04]} 33. Bxg6 {[%emt
0:00:01]} Rb7 {[%emt 0:00:07]} 34. Bxh7 {[%emt 0:00:09]} Kxh7 {[%emt 0:00:02]}
35. Ng5+ {[%emt 0:00:05]} Kg8 {[%emt 0:00:01]} 36. Ne6 {[%emt 0:00:02]} Rf2 {
[%emt 0:00:01]} 37. Nc5 {[%emt 0:00:34]} Rc7 {[%emt 0:00:17]} 38. e6 {[%emt 0:
00:14]} bxc3 {[%emt 0:00:01]} 39. bxc3 {[%emt 0:00:01]} Kh7 {[%emt 0:00:03]}
40. Nf3 {[%emt 0:00:06]} Re2 {[%emt 0:00:10]} 41. Ne5 {[%emt 0:00:05]} g5 {
[%emt 0:00:06]} 42. Ned7 {[%emt 0:00:06]} Kg7 {[%emt 0:00:05]} 43. Rf3 {[%emt
0:00:03]} g4 {[%emt 0:00:10]} 44. e7 {[%emt 0:00:05]} gxf3 {[%emt 0:00:07]} 45.
e8=Q {[%emt 0:00:01]} f2 {[%emt 0:00:07]} 46. Ne6+ {[%emt 0:00:33]} 1-0

[Event "Dvaro taure"]
[Site "Taujenai, Lithuania"]
[Date "2021.11.28"]
[Round "8.8"]
[White "Stremavicius, Pijus"]
[Black "Muralis, Aloyzas"]
[Result "1-0"]
[WhiteElo "2175"]
[BlackElo "1748"]
[PlyCount "63"]
[EventDate "2021.??.??"]
[TimeControl "10+5"]
[WhiteClock "0:04:23"]
[BlackClock "0:00:46"]

1. e4 {[%emt 0:00:05]} e5 {[%emt 0:00:02]} 2. Nc3 {[%emt 0:00:07]} Nc6 {[%emt
0:00:06]} 3. Bc4 {[%emt 0:00:03]} Nf6 {[%emt 0:00:10]} 4. d3 {[%emt 0:00:18]}
h6 {[%emt 0:00:04]} 5. f4 {[%emt 0:00:24]} Bc5 {[%emt 0:00:58]} 6. Nf3 {[%emt
0:00:02]} d6 {[%emt 0:00:03]} 7. Na4 {[%emt 0:00:09]} Bb6 {[%emt 0:00:15]} 8.
Nxb6 {[%emt 0:00:02]} axb6 {[%emt 0:00:03]} 9. O-O {[%emt 0:00:06]} Be6 {[%emt
0:01:01]} 10. Bxe6 {[%emt 0:00:30]} fxe6 {[%emt 0:00:02]} 11. fxe5 {[%emt 0:00:
18]} dxe5 {[%emt 0:00:02]} 12. Be3 {[%emt 0:00:21]} Qd7 {[%emt 0:00:51]} 13. b4
{[%emt 0:00:50]} Ng4 {[%emt 0:01:04]} 14. Bd2 {[%emt 0:00:13]} O-O-O {[%emt 0:
00:30]} 15. h3 {[%emt 0:00:03]} Nf6 {[%emt 0:00:07]} 16. b5 {[%emt 0:00:03]}
Ne7 {[%emt 0:00:08]} 17. a4 {[%emt 0:00:04]} Ng6 {[%emt 0:00:20]} 18. Bc3 {
[%emt 0:00:33]} Qd6 {[%emt 0:00:11]} 19. Kh2 {[%emt 0:00:20]} Qc5 {[%emt 0:00:
31]} 20. Qe1 {[%emt 0:01:04]} Nd7 {[%emt 0:00:56]} 21. Qd2 {[%emt 0:00:11]} Qe7
{[%emt 0:00:24]} 22. a5 {[%emt 0:00:06]} Nc5 {[%emt 0:00:16]} 23. axb6 {[%emt
0:00:21]} cxb6 {[%emt 0:00:08]} 24. Qe3 {[%emt 0:00:27]} Qd6 {[%emt 0:00:31]}
25. Nd2 {[%emt 0:00:11]} Rhf8 {[%emt 0:01:22]} 26. Nc4 {[%emt 0:00:04]} Qc7 {
[%emt 0:00:02]} 27. Rxf8 {[%emt 0:00:31]} Rxf8 {[%emt 0:00:47]} 28. Ra8+ {
[%emt 0:00:02]} Kd7 {[%emt 0:00:02]} 29. Rxf8 {[%emt 0:00:01]} Nxf8 {[%emt 0:
00:07]} 30. Bxe5 {[%emt 0:00:12]} Qd8 {[%emt 0:00:03]} 31. Qf3 {[%emt 0:00:07]}
Kc8 {[%emt 0:00:49]} 32. Nxb6+ {[%emt 0:00:33]} 1-0

[Event "Dvaro taure"]
[Site "Taujenai, Lithuania"]
[Date "2021.11.28"]
[Round "8.9"]
[White "Bagvilas, Lukas"]
[Black "Mulevicius, Andrius"]
[Result "1-0"]
[WhiteElo "2022"]
[BlackElo "1698"]
[PlyCount "139"]
[EventDate "2021.??.??"]
[TimeControl "10+5"]
[WhiteClock "0:00:38"]
[BlackClock "0:00:16"]

1. e4 {[%emt 0:00:02]} d5 {[%emt 0:00:08]} 2. exd5 {[%emt 0:00:04]} Nf6 {[%emt
0:00:01]} 3. Bb5+ {[%emt 0:00:01]} Bd7 {[%emt 0:00:02]} 4. Bc4 {[%emt 0:00:00]}
Bg4 {[%emt 0:00:01]} 5. f3 {[%emt 0:00:08]} Bf5 {[%emt 0:00:05]} 6. Nc3 {[%emt
0:00:03]} Nbd7 {[%emt 0:00:00]} 7. d3 {[%emt 0:01:01]} Nb6 {[%emt 0:00:02]} 8.
Be3 {[%emt 0:00:43]} Nfxd5 {[%emt 0:00:45]} 9. Nxd5 {[%emt 0:00:04]} Nxd5 {
[%emt 0:00:03]} 10. Bf2 {[%emt 0:00:00]} e6 {[%emt 0:00:34]} 11. Ne2 {[%emt 0:
00:02]} Bd6 {[%emt 0:00:26]} 12. O-O {[%emt 0:00:03]} O-O {[%emt 0:00:06]} 13.
Qd2 {[%emt 0:00:06]} c6 {[%emt 0:00:20]} 14. Ng3 {[%emt 0:00:02]} Bg6 {[%emt 0:
00:13]} 15. Ne4 {[%emt 0:00:04]} Bf4 {[%emt 0:00:48]} 16. Qe2 {[%emt 0:00:03]}
h5 {[%emt 0:00:41]} 17. Bb3 {[%emt 0:01:04]} b6 {[%emt 0:02:00]} 18. d4 {[%emt
0:00:06]} Qc7 {[%emt 0:01:00]} 19. g3 {[%emt 0:00:25]} Bh6 {[%emt 0:00:01]} 20.
Rad1 {[%emt 0:01:08]} Kh7 {[%emt 0:00:29]} 21. c4 {[%emt 0:00:42]} Nf6 {[%emt
0:00:08]} 22. Nxf6+ {[%emt 0:00:09]} gxf6 {[%emt 0:00:01]} 23. f4 {[%emt 0:00:
07]} Rg8 {[%emt 0:00:11]} 24. Kg2 {[%emt 0:00:52]} h4 {[%emt 0:01:30]} 25. Bc2
{[%emt 0:00:21]} Bxc2 {[%emt 0:00:10]} 26. Qxc2+ {[%emt 0:00:02]} f5 {[%emt 0:
00:02]} 27. Qe2 {[%emt 0:00:58]} Qxf4 {[%emt 0:00:20]} 28. Be1 {[%emt 0:01:10]}
Qg4 {[%emt 0:00:52]} 29. Qxg4 {[%emt 0:00:24]} Rxg4 {[%emt 0:00:05]} 30. Rd3 {
[%emt 0:00:35]} Rd8 {[%emt 0:00:31]} 31. Bc3 {[%emt 0:00:02]} Rdg8 {[%emt 0:00:
02]} 32. Kh3 {[%emt 0:00:03]} hxg3 {[%emt 0:00:54]} 33. hxg3 {[%emt 0:00:02]}
R8g5 {[%emt 0:00:09]} 34. d5 {[%emt 0:00:18]} Rh5+ {[%emt 0:00:14]} 35. Kg2 {
[%emt 0:00:02]} cxd5 {[%emt 0:00:09]} 36. cxd5 {[%emt 0:00:03]} exd5 {[%emt 0:
00:07]} 37. Rxd5 {[%emt 0:00:03]} Rhg5 {[%emt 0:00:04]} 38. Be5 {[%emt 0:00:41]
} f4 {[%emt 0:00:05]} 39. Rh1 {[%emt 0:00:35]} Rxg3+ {[%emt 0:00:04]} 40. Kf2 {
[%emt 0:00:19]} Rg2+ {[%emt 0:00:02]} 41. Kf1 {[%emt 0:00:04]} f6 {[%emt 0:00:
17]} 42. Rd7+ {[%emt 0:00:01]} Kg6 {[%emt 0:00:01]} 43. Bxf4 {[%emt 0:00:04]}
Rxb2 {[%emt 0:00:08]} 44. Bxg5 {[%emt 0:00:04]} Bxg5 {[%emt 0:00:02]} 45. Rxa7
{[%emt 0:00:04]} b5 {[%emt 0:00:06]} 46. Rhh7 {[%emt 0:00:06]} Kf5 {[%emt 0:00:
06]} 47. Rhb7 {[%emt 0:00:04]} b4 {[%emt 0:00:10]} 48. Ra4 {[%emt 0:00:12]} Bd2
{[%emt 0:00:08]} 49. Ke2 {[%emt 0:00:01]} Bc3+ {[%emt 0:00:02]} 50. Kd3 {[%emt
0:00:02]} Rd2+ {[%emt 0:00:05]} 51. Kc4 {[%emt 0:00:02]} Rd4+ {[%emt 0:00:04]}
52. Kb3 {[%emt 0:00:01]} Bd2 {[%emt 0:00:09]} 53. Ra5+ {[%emt 0:00:04]} Ke4 {
[%emt 0:00:05]} 54. Re7+ {[%emt 0:00:06]} Kd3 {[%emt 0:00:07]} 55. Rf5 {[%emt
0:00:04]} Bg5 {[%emt 0:00:06]} 56. Rb7 {[%emt 0:00:27]} Ke4 {[%emt 0:00:05]}
57. Rf2 {[%emt 0:00:03]} Ke3 {[%emt 0:00:08]} 58. Rc2 {[%emt 0:00:06]} f5 {
[%emt 0:00:05]} 59. Rxb4 {[%emt 0:00:03]} Rd3+ {[%emt 0:00:01]} 60. Rc3 {[%emt
0:00:07]} Rxc3+ {[%emt 0:00:07]} 61. Kxc3 {[%emt 0:00:03]} f4 {[%emt 0:00:02]}
62. Rb8 {[%emt 0:00:04]} Bf6+ {[%emt 0:00:11]} 63. Kc2 {[%emt 0:00:01]} f3 {
[%emt 0:00:06]} 64. Re8+ {[%emt 0:00:01]} Kf2 {[%emt 0:00:03]} 65. Kd3 {[%emt
0:00:02]} Kg2 {[%emt 0:00:07]} 66. Rg8+ {[%emt 0:00:04]} Kf1 {[%emt 0:00:05]}
67. Rf8 {[%emt 0:00:01]} Be7 {[%emt 0:00:04]} 68. Rxf3+ {[%emt 0:00:02]} Kg2 {
[%emt 0:00:00]} 69. Rf7 {[%emt 0:00:02]} Bd6 {[%emt 0:00:01]} 70. a4 {[%emt 0:
00:02]} 1-0